Workbook

Sheet 01.10.2019
D1: Приложение №11
D2: к постановлению администрации
D3: ЗАТО г.Радужный Владимирской области
D4: от 28.10.2019г.№ 1467
A6: Сведения о фактической численности муниципальных служащих, работников казенных и бюджетных учреждений и расходы на их денежное содержание по состоянию за 9 месяцев 2019 года
F7: тыс.руб.
A8: №п/п | B8: Код раздела (подраздела) | C8: Наименование раздела (подраздела) расходов | D8: Фактическая численность на 01.10.2019 года (чел.) | E8: Годовой фонд оплаты труда с начислениями | F8: Исполнено за отчетный период
A9: 1 | B9: 2 | C9: 3 | D9: 4 | E9: 5 | F9: 6
A10: 1 | B10: 0100 | C10: Общегосударственные вопросы | D10: =D12+D13+D14+D15+D16 -> 178 | E10: =E12+E13+E14+E15+E16 -> 56444.5 | F10: =F13+F14+F15+F16 -> 41176.45
C11: в том числе:
A12: 1.1 | B12: 0102 | C12: Функционирование высшего должностного лица субъекта Российской Федерации и муниципального образования | D12: 1
A13: 1.2 | B13: 0103 | C13: Функционирование законодательных (представительных) органов государственной власти и представительных органов муниципальных образований | D13: 2 | E13: 1148.7 | F13: 852.54
A14: 1.3 | B14: 0104 | C14: Функционирование Правительства Российской Федерации, высших исполнительных органов государственной власти субъектов Российской Федерации, местных администраций | D14: 18 | E14: 10404.34 | F14: 6992.4
A15: 1.4 | B15: 0106 | C15: Обеспечение деятельности финансовых, налоговых и таможенных органов и органов финансового (финансово-бюджетного) надзора | D15: 10 | E15: 5047.83 | F15: 3501.69
A16: 1.5 | B16: 0113 | C16: Другие общегосударственные вопросы | D16: 147 | E16: 39843.63 | F16: 29829.82
A17: 2 | B17: 0300 | C17: Национальная безопасность и правоохранительная деятельность, всего, в том числе | D17: =D19 -> 4 | E17: =E19 -> 2227.71 | F17: =F19 -> 1563.76
C18: в том числе:
A19: 2.1 | B19: 0309 | C19: Защита населения и территории от чрезвычайных ситуаций природного и техногенного характера, гражданская оборона | D19: 4 | E19: 2227.71 | F19: 1563.76
A20: 3. | B20: 0400 | C20: Национальная экономика | D20: =D22 -> 38 | E20: =E22 -> 15351.93 | F20: 10716.86
C21: в том числе:
A22: 3.1 | B22: 0409 | C22: Дорожное хозяйство (дорожные фонды) | D22: 38 | E22: 15351.93 | F22: 10716.86
A23: 4. | B23: 0500 | C23: Жилищно-коммунальное хозяйство | D23: =D25+D26 -> 94 | E23: =E25+E26 -> 34798.06 | F23: 25438.42
C24: в том числе:
A25: 4.1 | B25: 0503 | C25: Благоустройство | D25: 7 | E25: 2569.6 | F25: 1983.55
A26: 4.2 | B26: 0505 | C26: Другие вопросы в области жилищно-коммунального хозяйства | D26: 87 | E26: =34798.06-2569.6 -> 32228.46 | F26: =25438.42-1983.55 -> 23454.87
A27: 5 | B27: 0700 | C27: Образование | D27: =D29+D30+D31+D32 -> 556 | E27: =E29+E30+E31+E32 -> 213359.16 | F27: =F29+F30+F31+F32 -> 153375.22
C28: в том числе:
A29: 5.1 | B29: 0701 | C29: Дошкольное образование | D29: 236 | E29: 83616.77 | F29: 60437.09
A30: 5.2 | B30: 0702 | C30: Общее образование | D30: 194 | E30: 84530.62 | F30: 59894.09
A31: 5.3 | B31: 0703 | C31: Дополнительное образование детей | D31: 100 | E31: =17052.22+18483.92 -> 35536.14 | F31: =12685.77+13445.46 -> 26131.23
A32: 5.4. | B32: 0709 | C32: Другие вопросы в области образования | D32: 26 | E32: 9675.63 | F32: 6912.81
A33: 6. | B33: 0800 | C33: Культура, кинематография | D33: =D35+D36 -> 93 | E33: =E35+E36 -> 30657.46 | F33: =F35+F36 -> 22711.1
C34: в том числе:
A35: 6.1 | B35: 0801 | C35: Культура | D35: 54 | E35: =15337.96+4631.26 -> 19969.22 | F35: =11414.3+3430.43 -> 14844.73
A36: 6.2 | B36: 0804 | C36: Другие вопросы в области культуры, кинематографии | D36: 39 | E36: 10688.24 | F36: 7866.37
A37: 7. | B37: 1000 | C37: Социальная политика | D37: =D39 -> 2 | E37: =E39 -> 970.97 | F37: =F39 -> 643.04
C38: в том числе:
A39: 7.1 | B39: 1006 | C39: Другие вопросы в области социальной политики | D39: 2 | E39: 970.97 | F39: 643.04
A40: 8. | B40: 1100 | C40: Физическая культура и спорт | D40: =D42 -> 6 | E40: =E42 -> 729.63 | F40: =F42 -> 365.46
C41: в том числе:
A42: 8.1 | B42: 1103 | C42: Спорт высших достижений | D42: 6 | E42: =560.39+169.24 -> 729.63 | F42: =280.69+84.77 -> 365.46
C43: Всего: | D43: =D10+D17+D20+D23+D27+D33+D37+D40 -> 971 | E43: =E10+E17+E20+E23+E27+E33+E37+E40 -> 354539.42 | F43: =F10+F17+F20+F23+F27+F33+F37+F40 -> 255990.31
C45: Заместитель главы администрации города по финансам и экономике, начальник финансового управления | E45: О.М.Горшкова
C47: Заместитель начальника финансового управления | E47: М.Л.Семенович
C59: Исполнитель В.Н. Милованова
C60: 3-67-17
